{"text_format":"1","workbook":"xlsx","n_sheets":9,"sheets":["instructions","timecost","paths","manual","lpformulation","tc10","tc19","tc20","tc68"],"not_rendered":{"charts":0,"images":0,"macros":1,"external_links":0,"defined_names":57,"comments":0,"pivot_tables":0},"unopened":[],"bounds":{"document_bytes":16777216,"sheet_cells":100000,"rows_first":2000,"rows_last":500,"rows_between":2000,"halvings":0,"cell_chars":16384,"cell_head_chars":4096},"cells_cut":0,"cells_raw":0,"read":"whole","date_system":"1900"}

{"sheet":"instructions","index":0,"n_rows":0,"n_cols":0,"rows_kept":0,"cut":false,"hidden":false,"merged":[]}

{"sheet":"timecost","index":1,"n_rows":73,"n_cols":12,"rows_kept":73,"cut":false,"hidden":false,"merged":[]}
[null,"Number of Activities =",null,null,68]
[null,"Target Completion Time =",null,null,592]
[null,null,null,null,null,"Number of"]
[null,null,"Normal","Max","Crash","Immediate","Immediate"]
[null,"Act #","Time","Crash","Cost","Predecessors","Predecessors"]
["X1 = Induct Aircraft to Structural/Electrical Phase",1,8,0,0,0]
["X2 = Raise Fuselage on Work Stands",2,8,0,0,2,3,4]
["X3 = Review Work Package, Inventory OCM Parts",3,8,0,0,1,1]
["X4 = Inventory Upgrade Kits",4,16,4,14788.87,1,1]
["X5 = Structural Repair – Roof Section",5,56,0,0,2,3,4]
["X6 = Structural Repair – Nose Section",6,104,0,0,2,3,4]
["X7 = Remove Landing Gear",7,8,2,14788.87,1,2]
["X8 = Remove Electrical Interference – Transition Section",8,16,0,0,1,2]
["X9 = Remove Electrical Interference – Tailcone Section",9,16,0,0,1,2]
["X10 = Remove Electrical Interference - Cabin",10,24,0,0,1,2]
["X11 = Structural Repair – Cockpit Section",11,80,0,0,1,2]
["X12 = Inspect/Repair Landing Gear Fittings",12,16,4,14788.87,1,7]
["X13 = Inspect/Repair/Reassemble Landing Gear",13,64,8,43617.67,1,7]
["X14 = Structural Repair – Transition Section",14,24,0,0,1,8]
["X15 = Structural Repair – Tail Cone Section",15,72,0,0,1,9]
["X16 = Structural Repair – Cabin Under Floor",16,48,0,0,1,10]
["X17 = SSI 50-6 Rework of Lower Aft Transition Section",17,240,0,0,1,14]
["X18 = Remove Electrical Interference – Roof Section",18,8,0,0,1,5]
["X19 = SSI 50-15 Installation of ESSS Doublers",19,24,0,0,1,18]
["X20 = Install Landing Gear",20,8,0,0,2,12,13]
["X21 = Structural Repair – Cabin Overhead",21,48,0,0,1,16]
["X22 = SSI 50-22 Modification of Cockpit Floor and Door Posts",22,32,0,0,1,11]
["X23 = SSI 50-16 Rework of Upper Plating and Doubler Installation",23,64,0,0,1,19]
["X24 = SSI 50-9 Modification of Drive Shaft Supports",24,32,0,0,1,15]
["X25 = SSI 50-35 Modification of Canopy Assembly, Nose Door Hinge Access",25,8,0,0,1,6]
["X26 = Electrical Repair – Nose Section",26,24,0,0,1,25]
["X27 = Electrical Repair – Cockpit Section",27,24,0,0,1,22]
["X28 = SSI 50-13 Installation of Tail Cone Plating Modification Kit",28,56,0,0,1,24]
["X29 = SSI 50-5 Installation of Side Fuselage Structural Reinforcement",29,152,0,0,1,21]
["X30 = Final/Recheck Structural – Nose Section",30,24,9,5179.2700000000004,1,26]
["X31 = Final/Recheck Structural – Cockpit Section",31,24,8,7581.67,1,27]
["X32 = SSI 50-30 Installation of HIRSS Repair Kit",32,16,0,0,1,23]
["X33 = Final/Recheck Electrical – Nose Section",33,8,2,14788.87,1,30]
["X34 = Final/Recheck Electrical – Cockpit Section",34,8,2,14788.87,1,31]
["X35 = Electrical Repairs – Roof Section",35,24,0,0,1,32]
["X36 = SSI 50-17 Modification of Station 605.00 Bulkhead",36,32,0,0,1,28]
["X37 = Final/Recheck Structural – Roof Section",37,24,8,7581.67,1,35]
["X38 = Structural Repair - Firewalls",38,24,8,7581.67,1,37]
["X39 = SSI 50-24 Modification of Tail Cone",39,56,0,0,1,36]
["X40 = SSI 50-19 Modification of Left and Right Side Firewall Assemblies",40,32,0,0,1,38]
["X41 = Final/Recheck Structural – Firewalls Section",41,8,2,14788.87,1,40]
["X42 = SSI 50-29 Modification of Tail Cone Shear Deck",42,56,0,0,1,39]
["X43 = Final/Recheck Electrical – Roof Section",43,16,6,5179.2700000000004,1,41]
["X44 = SSI 50-7 Modification of Buttline 34.50",44,40,0,0,1,29]
["X45 = SSI 50-20 Modification of Tail Rotor Drive Shaft Support Brackets",45,16,0,0,1,17]
["X46 = SSI 50-34 Modification of Transition Station 485.00",46,8,0,0,1,45]
["X47 = SSI 50-21 Replacement of Vapor Barrier Support Structure",47,24,0,0,1,46]
["X48 = SSI 50-26 Modification of Station 379.00 Frame",48,24,0,0,1,44]
["X49 = Electrical Repair –Tail Cone Section",49,24,0,0,1,42]
["X50 = Electrical Repair – Transition Section",50,32,0,0,1,47]
["X51 = Electrical Repair – Cabin Section",51,40,0,0,1,48]
["X52 = Final/Recheck Structural – Tail Cone Section",52,24,8,7581.67,1,49]
["X53 = Final/Recheck Structural – Transition Section",53,24,8,7581.67,1,50]
["X54 = Final/Recheck Electrical – Tail Cone Section",54,8,2,14788.87,1,52]
["X55 = Final/Recheck Structural - Cabin",55,24,8,7581.67,1,51]
["X56 = Final/Recheck Electrical – Transition Section",56,16,6,5179.2700000000004,1,53]
["X57 = Final/Recheck Electrical – Cabin Section",57,16,6,5179.2700000000004,1,55]
["X58 = Remove Fuselage from Work Stands",58,8,2,14788.87,6,20,34,43,54,56,57]
["X59 = Wire Alignment",59,40,8,21996.07,1,58]
["X60 = All Structural Repairs Complete",60,4,1,14788.87,2,33,59]
["X61 = Seam Seal Fuselage",61,32,0,0,1,60]
["X62 = Move Fuselage to Final ATC",62,4,1,14788.87,1,61]
["X63 = Final ATC",63,80,20,14788.87,1,62]
["X64 = Final Electrical Inspection",64,8,0,0,1,63]
["X65 = Final Structural Inspection",65,8,0,0,1,63]
["X66 = Install EMI Filters",66,8,0,0,1,64]
["X67 = Clean and Close",67,16,4,14788.87,2,64,65]
["X68 = Move Fuselage to Retreat/Prime Paint",68,4,0,0,2,66,67]

{"sheet":"paths","index":2,"n_rows":50,"n_cols":24,"rows_kept":50,"cut":false,"hidden":false,"merged":[]}
["Path","Path"]
["Number","Length","Path"]
[1,644,1,4,2,10,16,21,29,44,48,51,55,57,58,59,60,61,62,63,64,67,68]
[2,644,1,4,2,10,16,21,29,44,48,51,55,57,58,59,60,61,62,63,65,67,68]
[3,636,1,4,2,10,16,21,29,44,48,51,55,57,58,59,60,61,62,63,64,66,68]
[4,636,1,3,2,10,16,21,29,44,48,51,55,57,58,59,60,61,62,63,64,67,68]
[5,636,1,3,2,10,16,21,29,44,48,51,55,57,58,59,60,61,62,63,65,67,68]
[6,628,1,3,2,10,16,21,29,44,48,51,55,57,58,59,60,61,62,63,64,66,68]
[7,628,1,4,2,8,14,17,45,46,47,50,53,56,58,59,60,61,62,63,64,67,68]
[8,628,1,4,2,8,14,17,45,46,47,50,53,56,58,59,60,61,62,63,65,67,68]
[9,620,1,4,2,8,14,17,45,46,47,50,53,56,58,59,60,61,62,63,64,66,68]
[10,620,1,3,2,8,14,17,45,46,47,50,53,56,58,59,60,61,62,63,65,67,68]
[11,620,1,3,2,8,14,17,45,46,47,50,53,56,58,59,60,61,62,63,64,67,68]
[12,612,1,3,2,8,14,17,45,46,47,50,53,56,58,59,60,61,62,63,64,66,68]
[13,604,1,4,2,9,15,24,28,36,39,42,49,52,54,58,59,60,61,62,63,65,67,68]
[14,604,1,4,2,9,15,24,28,36,39,42,49,52,54,58,59,60,61,62,63,64,67,68]
[15,596,1,4,2,9,15,24,28,36,39,42,49,52,54,58,59,60,61,62,63,64,66,68]
[16,596,1,3,2,9,15,24,28,36,39,42,49,52,54,58,59,60,61,62,63,64,67,68]
[17,596,1,3,2,9,15,24,28,36,39,42,49,52,54,58,59,60,61,62,63,65,67,68]
[18,588,1,3,2,9,15,24,28,36,39,42,49,52,54,58,59,60,61,62,63,64,66,68]
[19,516,1,4,5,18,19,23,32,35,37,38,40,41,43,58,59,60,61,62,63,64,67,68]
[20,516,1,4,5,18,19,23,32,35,37,38,40,41,43,58,59,60,61,62,63,65,67,68]
[21,508,1,4,5,18,19,23,32,35,37,38,40,41,43,58,59,60,61,62,63,64,66,68]
[22,508,1,3,5,18,19,23,32,35,37,38,40,41,43,58,59,60,61,62,63,65,67,68]
[23,508,1,3,5,18,19,23,32,35,37,38,40,41,43,58,59,60,61,62,63,64,67,68]
[24,500,1,3,5,18,19,23,32,35,37,38,40,41,43,58,59,60,61,62,63,64,66,68]
[25,396,1,4,2,11,22,27,31,34,58,59,60,61,62,63,65,67,68]
[26,396,1,4,2,11,22,27,31,34,58,59,60,61,62,63,64,67,68]
[27,388,1,4,2,11,22,27,31,34,58,59,60,61,62,63,64,66,68]
[28,388,1,3,2,11,22,27,31,34,58,59,60,61,62,63,64,67,68]
[29,388,1,3,2,11,22,27,31,34,58,59,60,61,62,63,65,67,68]
[30,380,1,3,2,11,22,27,31,34,58,59,60,61,62,63,64,66,68]
[31,340,1,4,6,25,26,30,33,60,61,62,63,64,67,68]
[32,340,1,4,6,25,26,30,33,60,61,62,63,65,67,68]
[33,332,1,4,6,25,26,30,33,60,61,62,63,64,66,68]
[34,332,1,3,6,25,26,30,33,60,61,62,63,65,67,68]
[35,332,1,3,6,25,26,30,33,60,61,62,63,64,67,68]
[36,324,1,3,6,25,26,30,33,60,61,62,63,64,66,68]
[37,308,1,4,2,7,13,20,58,59,60,61,62,63,64,67,68]
[38,308,1,4,2,7,13,20,58,59,60,61,62,63,65,67,68]
[39,300,1,4,2,7,13,20,58,59,60,61,62,63,64,66,68]
[40,300,1,3,2,7,13,20,58,59,60,61,62,63,64,67,68]
[41,300,1,3,2,7,13,20,58,59,60,61,62,63,65,67,68]
[42,292,1,3,2,7,13,20,58,59,60,61,62,63,64,66,68]
[43,260,1,4,2,7,12,20,58,59,60,61,62,63,65,67,68]
[44,260,1,4,2,7,12,20,58,59,60,61,62,63,64,67,68]
[45,252,1,4,2,7,12,20,58,59,60,61,62,63,64,66,68]
[46,252,1,3,2,7,12,20,58,59,60,61,62,63,65,67,68]
[47,252,1,3,2,7,12,20,58,59,60,61,62,63,64,67,68]
[48,244,1,3,2,7,12,20,58,59,60,61,62,63,64,66,68]

{"sheet":"manual","index":3,"n_rows":59,"n_cols":72,"rows_kept":59,"cut":false,"hidden":false,"merged":[]}
["Project Completion Time =",null,null,null,{"$f":"MAX(C12:C10000)","v":641}]
["Total Cost of Crashing =",null,null,null,{"$f":"SUMPRODUCT(E5:GH5,E7:GH7)","v":44366.61}]
[]
["Activity Number",null,null,null,1,2,3,4,5,6,7,8,9,10,11,12,13,14,15,16,17,18,19,20,21,22,23,24,25,26,27,28,29,30,31,32,33,34,35,36,37,38,39,40,41,42,43,44,45,46,47,48,49,50,51,52,53,54,55,56,57,58,59,60,61,62,63,64,65,66,67,68]
["Per Time Period Crashing Cost",null,null,null,0,0,0,14788.87,0,0,14788.87,0,0,0,0,14788.87,43617.67,0,0,0,0,0,0,0,0,0,0,0,0,0,0,0,0,5179.2700000000004,7581.67,0,14788.87,14788.87,0,0,7581.67,7581.67,0,0,14788.87,0,5179.2700000000004,0,0,0,0,0,0,0,0,7581.67,7581.67,14788.87,7581.67,5179.2700000000004,5179.2700000000004,14788.87,21996.07,14788.87,0,14788.87,14788.87,0,0,0,14788.87,0]
["Maximum Possible Crashing",null,null,null,0,0,0,4,0,0,2,0,0,0,0,4,8,0,0,0,0,0,0,0,0,0,0,0,0,0,0,0,0,9,8,0,2,2,0,0,8,8,0,0,2,0,6,0,0,0,0,0,0,0,0,8,8,2,8,6,6,2,8,1,0,1,20,0,0,0,4,0]
["Selected Crashing",null,null,null,0,0,0,3,0,0,0,0,0,0,0,0,0,0,0,0,0,0,0,0,0,0,0,0,0,0,0,0,0,0,0,0,0,0,0,0,0,0,0,0,0,0,0,0,0,0,0,0,0,0,0,0,0,0,0,0,0,0,0,0,0,0,0,0,0,0,0,0]
[]
[null,"Original","Crashed"]
["Path ","Path","Path"]
["Number","Length","Length"]
[1,644,{"$f":"B12-SUMPRODUCT(E$7:GU$7,E12:GU12)","v":641},null,1,1,null,1,null,null,null,null,null,1,null,null,null,null,null,1,null,null,null,null,1,null,null,null,null,null,null,null,1,null,null,null,null,null,null,null,null,null,null,null,null,null,null,1,null,null,null,1,null,null,1,null,null,null,1,null,1,1,1,1,1,1,1,1,null,null,1,1]
[2,644,{"$f":"B13-SUMPRODUCT(E$7:GU$7,E13:GU13)","v":641},null,1,1,null,1,null,null,null,null,null,1,null,null,null,null,null,1,null,null,null,null,1,null,null,null,null,null,null,null,1,null,null,null,null,null,null,null,null,null,null,null,null,null,null,1,null,null,null,1,null,null,1,null,null,null,1,null,1,1,1,1,1,1,1,null,1,null,1,1]
[3,636,{"$f":"B14-SUMPRODUCT(E$7:GU$7,E14:GU14)","v":633},null,1,1,null,1,null,null,null,null,null,1,null,null,null,null,null,1,null,null,null,null,1,null,null,null,null,null,null,null,1,null,null,null,null,null,null,null,null,null,null,null,null,null,null,1,null,null,null,1,null,null,1,null,null,null,1,null,1,1,1,1,1,1,1,1,null,1,null,1]
[4,636,{"$f":"B15-SUMPRODUCT(E$7:GU$7,E15:GU15)","v":636},null,1,1,1,null,null,null,null,null,null,1,null,null,null,null,null,1,null,null,null,null,1,null,null,null,null,null,null,null,1,null,null,null,null,null,null,null,null,null,null,null,null,null,null,1,null,null,null,1,null,null,1,null,null,null,1,null,1,1,1,1,1,1,1,1,null,null,1,1]
[5,636,{"$f":"B16-SUMPRODUCT(E$7:GU$7,E16:GU16)","v":636},null,1,1,1,null,null,null,null,null,null,1,null,null,null,null,null,1,null,null,null,null,1,null,null,null,null,null,null,null,1,null,null,null,null,null,null,null,null,null,null,null,null,null,null,1,null,null,null,1,null,null,1,null,null,null,1,null,1,1,1,1,1,1,1,null,1,null,1,1]
[6,628,{"$f":"B17-SUMPRODUCT(E$7:GU$7,E17:GU17)","v":628},null,1,1,1,null,null,null,null,null,null,1,null,null,null,null,null,1,null,null,null,null,1,null,null,null,null,null,null,null,1,null,null,null,null,null,null,null,null,null,null,null,null,null,null,1,null,null,null,1,null,null,1,null,null,null,1,null,1,1,1,1,1,1,1,1,null,1,null,1]
[7,628,{"$f":"B18-SUMPRODUCT(E$7:GU$7,E18:GU18)","v":625},null,1,1,null,1,null,null,null,1,null,null,null,null,null,1,null,null,1,null,null,null,null,null,null,null,null,null,null,null,null,null,null,null,null,null,null,null,null,null,null,null,null,null,null,null,1,1,1,null,null,1,null,null,1,null,null,1,null,1,1,1,1,1,1,1,null,null,1,1]
[8,628,{"$f":"B19-SUMPRODUCT(E$7:GU$7,E19:GU19)","v":625},null,1,1,null,1,null,null,null,1,null,null,null,null,null,1,null,null,1,null,null,null,null,null,null,null,null,null,null,null,null,null,null,null,null,null,null,null,null,null,null,null,null,null,null,null,1,1,1,null,null,1,null,null,1,null,null,1,null,1,1,1,1,1,1,null,1,null,1,1]
[9,620,{"$f":"B20-SUMPRODUCT(E$7:GU$7,E20:GU20)","v":617},null,1,1,null,1,null,null,null,1,null,null,null,null,null,1,null,null,1,null,null,null,null,null,null,null,null,null,null,null,null,null,null,null,null,null,null,null,null,null,null,null,null,null,null,null,1,1,1,null,null,1,null,null,1,null,null,1,null,1,1,1,1,1,1,1,null,1,null,1]
[10,620,{"$f":"B21-SUMPRODUCT(E$7:GU$7,E21:GU21)","v":620},null,1,1,1,null,null,null,null,1,null,null,null,null,null,1,null,null,1,null,null,null,null,null,null,null,null,null,null,null,null,null,null,null,null,null,null,null,null,null,null,null,null,null,null,null,1,1,1,null,null,1,null,null,1,null,null,1,null,1,1,1,1,1,1,null,1,null,1,1]
[11,620,{"$f":"B22-SUMPRODUCT(E$7:GU$7,E22:GU22)","v":620},null,1,1,1,null,null,null,null,1,null,null,null,null,null,1,null,null,1,null,null,null,null,null,null,null,null,null,null,null,null,null,null,null,null,null,null,null,null,null,null,null,null,null,null,null,1,1,1,null,null,1,null,null,1,null,null,1,null,1,1,1,1,1,1,1,null,null,1,1]
[12,612,{"$f":"B23-SUMPRODUCT(E$7:GU$7,E23:GU23)","v":612},null,1,1,1,null,null,null,null,1,null,null,null,null,null,1,null,null,1,null,null,null,null,null,null,null,null,null,null,null,null,null,null,null,null,null,null,null,null,null,null,null,null,null,null,null,1,1,1,null,null,1,null,null,1,null,null,1,null,1,1,1,1,1,1,1,null,1,null,1]
[13,604,{"$f":"B24-SUMPRODUCT(E$7:GU$7,E24:GU24)","v":601},null,1,1,null,1,null,null,null,null,1,null,null,null,null,null,1,null,null,null,null,null,null,null,null,1,null,null,null,1,null,null,null,null,null,null,null,1,null,null,1,null,null,1,null,null,null,null,null,null,1,null,null,1,null,1,null,null,null,1,1,1,1,1,1,null,1,null,1,1]
[14,604,{"$f":"B25-SUMPRODUCT(E$7:GU$7,E25:GU25)","v":601},null,1,1,null,1,null,null,null,null,1,null,null,null,null,null,1,null,null,null,null,null,null,null,null,1,null,null,null,1,null,null,null,null,null,null,null,1,null,null,1,null,null,1,null,null,null,null,null,null,1,null,null,1,null,1,null,null,null,1,1,1,1,1,1,1,null,null,1,1]
[15,596,{"$f":"B26-SUMPRODUCT(E$7:GU$7,E26:GU26)","v":593},null,1,1,null,1,null,null,null,null,1,null,null,null,null,null,1,null,null,null,null,null,null,null,null,1,null,null,null,1,null,null,null,null,null,null,null,1,null,null,1,null,null,1,null,null,null,null,null,null,1,null,null,1,null,1,null,null,null,1,1,1,1,1,1,1,null,1,null,1]
[16,596,{"$f":"B27-SUMPRODUCT(E$7:GU$7,E27:GU27)","v":596},null,1,1,1,null,null,null,null,null,1,null,null,null,null,null,1,null,null,null,null,null,null,null,null,1,null,null,null,1,null,null,null,null,null,null,null,1,null,null,1,null,null,1,null,null,null,null,null,null,1,null,null,1,null,1,null,null,null,1,1,1,1,1,1,1,null,null,1,1]
[17,596,{"$f":"B28-SUMPRODUCT(E$7:GU$7,E28:GU28)","v":596},null,1,1,1,null,null,null,null,null,1,null,null,null,null,null,1,null,null,null,null,null,null,null,null,1,null,null,null,1,null,null,null,null,null,null,null,1,null,null,1,null,null,1,null,null,null,null,null,null,1,null,null,1,null,1,null,null,null,1,1,1,1,1,1,null,1,null,1,1]
[18,588,{"$f":"B29-SUMPRODUCT(E$7:GU$7,E29:GU29)","v":588},null,1,1,1,null,null,null,null,null,1,null,null,null,null,null,1,null,null,null,null,null,null,null,null,1,null,null,null,1,null,null,null,null,null,null,null,1,null,null,1,null,null,1,null,null,null,null,null,null,1,null,null,1,null,1,null,null,null,1,1,1,1,1,1,1,null,1,null,1]
[19,516,{"$f":"B30-SUMPRODUCT(E$7:GU$7,E30:GU30)","v":513},null,1,null,null,1,1,null,null,null,null,null,null,null,null,null,null,null,null,1,1,null,null,null,1,null,null,null,null,null,null,null,null,1,null,null,1,null,1,1,null,1,1,null,1,null,null,null,null,null,null,null,null,null,null,null,null,null,null,1,1,1,1,1,1,1,null,null,1,1]
[20,516,{"$f":"B31-SUMPRODUCT(E$7:GU$7,E31:GU31)","v":513},null,1,null,null,1,1,null,null,null,null,null,null,null,null,null,null,null,null,1,1,null,null,null,1,null,null,null,null,null,null,null,null,1,null,null,1,null,1,1,null,1,1,null,1,null,null,null,null,null,null,null,null,null,null,null,null,null,null,1,1,1,1,1,1,null,1,null,1,1]
[21,508,{"$f":"B32-SUMPRODUCT(E$7:GU$7,E32:GU32)","v":505},null,1,null,null,1,1,null,null,null,null,null,null,null,null,null,null,null,null,1,1,null,null,null,1,null,null,null,null,null,null,null,null,1,null,null,1,null,1,1,null,1,1,null,1,null,null,null,null,null,null,null,null,null,null,null,null,null,null,1,1,1,1,1,1,1,null,1,null,1]
[22,508,{"$f":"B33-SUMPRODUCT(E$7:GU$7,E33:GU33)","v":508},null,1,null,1,null,1,null,null,null,null,null,null,null,null,null,null,null,null,1,1,null,null,null,1,null,null,null,null,null,null,null,null,1,null,null,1,null,1,1,null,1,1,null,1,null,null,null,null,null,null,null,null,null,null,null,null,null,null,1,1,1,1,1,1,null,1,null,1,1]
[23,508,{"$f":"B34-SUMPRODUCT(E$7:GU$7,E34:GU34)","v":508},null,1,null,1,null,1,null,null,null,null,null,null,null,null,null,null,null,null,1,1,null,null,null,1,null,null,null,null,null,null,null,null,1,null,null,1,null,1,1,null,1,1,null,1,null,null,null,null,null,null,null,null,null,null,null,null,null,null,1,1,1,1,1,1,1,null,null,1,1]
[24,500,{"$f":"B35-SUMPRODUCT(E$7:GU$7,E35:GU35)","v":500},null,1,null,1,null,1,null,null,null,null,null,null,null,null,null,null,null,null,1,1,null,null,null,1,null,null,null,null,null,null,null,null,1,null,null,1,null,1,1,null,1,1,null,1,null,null,null,null,null,null,null,null,null,null,null,null,null,null,1,1,1,1,1,1,1,null,1,null,1]
[25,396,{"$f":"B36-SUMPRODUCT(E$7:GU$7,E36:GU36)","v":393},null,1,1,null,1,null,null,null,null,null,null,1,null,null,null,null,null,null,null,null,null,null,1,null,null,null,null,1,null,null,null,1,null,null,1,null,null,null,null,null,null,null,null,null,null,null,null,null,null,null,null,null,null,null,null,null,null,null,1,1,1,1,1,1,null,1,null,1,1]
[26,396,{"$f":"B37-SUMPRODUCT(E$7:GU$7,E37:GU37)","v":393},null,1,1,null,1,null,null,null,null,null,null,1,null,null,null,null,null,null,null,null,null,null,1,null,null,null,null,1,null,null,null,1,null,null,1,null,null,null,null,null,null,null,null,null,null,null,null,null,null,null,null,null,null,null,null,null,null,null,1,1,1,1,1,1,1,null,null,1,1]
[27,388,{"$f":"B38-SUMPRODUCT(E$7:GU$7,E38:GU38)","v":385},null,1,1,null,1,null,null,null,null,null,null,1,null,null,null,null,null,null,null,null,null,null,1,null,null,null,null,1,null,null,null,1,null,null,1,null,null,null,null,null,null,null,null,null,null,null,null,null,null,null,null,null,null,null,null,null,null,null,1,1,1,1,1,1,1,null,1,null,1]
[28,388,{"$f":"B39-SUMPRODUCT(E$7:GU$7,E39:GU39)","v":388},null,1,1,1,null,null,null,null,null,null,null,1,null,null,null,null,null,null,null,null,null,null,1,null,null,null,null,1,null,null,null,1,null,null,1,null,null,null,null,null,null,null,null,null,null,null,null,null,null,null,null,null,null,null,null,null,null,null,1,1,1,1,1,1,1,null,null,1,1]
[29,388,{"$f":"B40-SUMPRODUCT(E$7:GU$7,E40:GU40)","v":388},null,1,1,1,null,null,null,null,null,null,null,1,null,null,null,null,null,null,null,null,null,null,1,null,null,null,null,1,null,null,null,1,null,null,1,null,null,null,null,null,null,null,null,null,null,null,null,null,null,null,null,null,null,null,null,null,null,null,1,1,1,1,1,1,null,1,null,1,1]
[30,380,{"$f":"B41-SUMPRODUCT(E$7:GU$7,E41:GU41)","v":380},null,1,1,1,null,null,null,null,null,null,null,1,null,null,null,null,null,null,null,null,null,null,1,null,null,null,null,1,null,null,null,1,null,null,1,null,null,null,null,null,null,null,null,null,null,null,null,null,null,null,null,null,null,null,null,null,null,null,1,1,1,1,1,1,1,null,1,null,1]
[31,340,{"$f":"B42-SUMPRODUCT(E$7:GU$7,E42:GU42)","v":337},null,1,null,null,1,null,1,null,null,null,null,null,null,null,null,null,null,null,null,null,null,null,null,null,null,1,1,null,null,null,1,null,null,1,null,null,null,null,null,null,null,null,null,null,null,null,null,null,null,null,null,null,null,null,null,null,null,null,null,null,1,1,1,1,1,null,null,1,1]
[32,340,{"$f":"B43-SUMPRODUCT(E$7:GU$7,E43:GU43)","v":337},null,1,null,null,1,null,1,null,null,null,null,null,null,null,null,null,null,null,null,null,null,null,null,null,null,1,1,null,null,null,1,null,null,1,null,null,null,null,null,null,null,null,null,null,null,null,null,null,null,null,null,null,null,null,null,null,null,null,null,null,1,1,1,1,null,1,null,1,1]
[33,332,{"$f":"B44-SUMPRODUCT(E$7:GU$7,E44:GU44)","v":329},null,1,null,null,1,null,1,null,null,null,null,null,null,null,null,null,null,null,null,null,null,null,null,null,null,1,1,null,null,null,1,null,null,1,null,null,null,null,null,null,null,null,null,null,null,null,null,null,null,null,null,null,null,null,null,null,null,null,null,null,1,1,1,1,1,null,1,null,1]
[34,332,{"$f":"B45-SUMPRODUCT(E$7:GU$7,E45:GU45)","v":332},null,1,null,1,null,null,1,null,null,null,null,null,null,null,null,null,null,null,null,null,null,null,null,null,null,1,1,null,null,null,1,null,null,1,null,null,null,null,null,null,null,null,null,null,null,null,null,null,null,null,null,null,null,null,null,null,null,null,null,null,1,1,1,1,null,1,null,1,1]
[35,332,{"$f":"B46-SUMPRODUCT(E$7:GU$7,E46:GU46)","v":332},null,1,null,1,null,null,1,null,null,null,null,null,null,null,null,null,null,null,null,null,null,null,null,null,null,1,1,null,null,null,1,null,null,1,null,null,null,null,null,null,null,null,null,null,null,null,null,null,null,null,null,null,null,null,null,null,null,null,null,null,1,1,1,1,1,null,null,1,1]
[36,324,{"$f":"B47-SUMPRODUCT(E$7:GU$7,E47:GU47)","v":324},null,1,null,1,null,null,1,null,null,null,null,null,null,null,null,null,null,null,null,null,null,null,null,null,null,1,1,null,null,null,1,null,null,1,null,null,null,null,null,null,null,null,null,null,null,null,null,null,null,null,null,null,null,null,null,null,null,null,null,null,1,1,1,1,1,null,1,null,1]
[37,308,{"$f":"B48-SUMPRODUCT(E$7:GU$7,E48:GU48)","v":305},null,1,1,null,1,null,null,1,null,null,null,null,null,1,null,null,null,null,null,null,1,null,null,null,null,null,null,null,null,null,null,null,null,null,null,null,null,null,null,null,null,null,null,null,null,null,null,null,null,null,null,null,null,null,null,null,null,null,1,1,1,1,1,1,1,null,null,1,1]
[38,308,{"$f":"B49-SUMPRODUCT(E$7:GU$7,E49:GU49)","v":305},null,1,1,null,1,null,null,1,null,null,null,null,null,1,null,null,null,null,null,null,1,null,null,null,null,null,null,null,null,null,null,null,null,null,null,null,null,null,null,null,null,null,null,null,null,null,null,null,null,null,null,null,null,null,null,null,null,null,1,1,1,1,1,1,null,1,null,1,1]
[39,300,{"$f":"B50-SUMPRODUCT(E$7:GU$7,E50:GU50)","v":297},null,1,1,null,1,null,null,1,null,null,null,null,null,1,null,null,null,null,null,null,1,null,null,null,null,null,null,null,null,null,null,null,null,null,null,null,null,null,null,null,null,null,null,null,null,null,null,null,null,null,null,null,null,null,null,null,null,null,1,1,1,1,1,1,1,null,1,null,1]
[40,300,{"$f":"B51-SUMPRODUCT(E$7:GU$7,E51:GU51)","v":300},null,1,1,1,null,null,null,1,null,null,null,null,null,1,null,null,null,null,null,null,1,null,null,null,null,null,null,null,null,null,null,null,null,null,null,null,null,null,null,null,null,null,null,null,null,null,null,null,null,null,null,null,null,null,null,null,null,null,1,1,1,1,1,1,1,null,null,1,1]
[41,300,{"$f":"B52-SUMPRODUCT(E$7:GU$7,E52:GU52)","v":300},null,1,1,1,null,null,null,1,null,null,null,null,null,1,null,null,null,null,null,null,1,null,null,null,null,null,null,null,null,null,null,null,null,null,null,null,null,null,null,null,null,null,null,null,null,null,null,null,null,null,null,null,null,null,null,null,null,null,1,1,1,1,1,1,null,1,null,1,1]
[42,292,{"$f":"B53-SUMPRODUCT(E$7:GU$7,E53:GU53)","v":292},null,1,1,1,null,null,null,1,null,null,null,null,null,1,null,null,null,null,null,null,1,null,null,null,null,null,null,null,null,null,null,null,null,null,null,null,null,null,null,null,null,null,null,null,null,null,null,null,null,null,null,null,null,null,null,null,null,null,1,1,1,1,1,1,1,null,1,null,1]
[43,260,{"$f":"B54-SUMPRODUCT(E$7:GU$7,E54:GU54)","v":257},null,1,1,null,1,null,null,1,null,null,null,null,1,null,null,null,null,null,null,null,1,null,null,null,null,null,null,null,null,null,null,null,null,null,null,null,null,null,null,null,null,null,null,null,null,null,null,null,null,null,null,null,null,null,null,null,null,null,1,1,1,1,1,1,null,1,null,1,1]
[44,260,{"$f":"B55-SUMPRODUCT(E$7:GU$7,E55:GU55)","v":257},null,1,1,null,1,null,null,1,null,null,null,null,1,null,null,null,null,null,null,null,1,null,null,null,null,null,null,null,null,null,null,null,null,null,null,null,null,null,null,null,null,null,null,null,null,null,null,null,null,null,null,null,null,null,null,null,null,null,1,1,1,1,1,1,1,null,null,1,1]
[45,252,{"$f":"B56-SUMPRODUCT(E$7:GU$7,E56:GU56)","v":249},null,1,1,null,1,null,null,1,null,null,null,null,1,null,null,null,null,null,null,null,1,null,null,null,null,null,null,null,null,null,null,null,null,null,null,null,null,null,null,null,null,null,null,null,null,null,null,null,null,null,null,null,null,null,null,null,null,null,1,1,1,1,1,1,1,null,1,null,1]
[46,252,{"$f":"B57-SUMPRODUCT(E$7:GU$7,E57:GU57)","v":252},null,1,1,1,null,null,null,1,null,null,null,null,1,null,null,null,null,null,null,null,1,null,null,null,null,null,null,null,null,null,null,null,null,null,null,null,null,null,null,null,null,null,null,null,null,null,null,null,null,null,null,null,null,null,null,null,null,null,1,1,1,1,1,1,null,1,null,1,1]
[47,252,{"$f":"B58-SUMPRODUCT(E$7:GU$7,E58:GU58)","v":252},null,1,1,1,null,null,null,1,null,null,null,null,1,null,null,null,null,null,null,null,1,null,null,null,null,null,null,null,null,null,null,null,null,null,null,null,null,null,null,null,null,null,null,null,null,null,null,null,null,null,null,null,null,null,null,null,null,null,1,1,1,1,1,1,1,null,null,1,1]
[48,244,{"$f":"B59-SUMPRODUCT(E$7:GU$7,E59:GU59)","v":244},null,1,1,1,null,null,null,1,null,null,null,null,1,null,null,null,null,null,null,null,1,null,null,null,null,null,null,null,null,null,null,null,null,null,null,null,null,null,null,null,null,null,null,null,null,null,null,null,null,null,null,null,null,null,null,null,null,null,1,1,1,1,1,1,1,null,1,null,1]

{"sheet":"lpformulation","index":4,"n_rows":27,"n_cols":72,"rows_kept":27,"cut":false,"hidden":false,"merged":[]}
["Activity Number",null,null,null,1,2,3,4,5,6,7,8,9,10,11,12,13,14,15,16,17,18,19,20,21,22,23,24,25,26,27,28,29,30,31,32,33,34,35,36,37,38,39,40,41,42,43,44,45,46,47,48,49,50,51,52,53,54,55,56,57,58,59,60,61,62,63,64,65,66,67,68]
[null,"Objective =",{"$f":"SUMPRODUCT(E$3:GU$3,E$7:GU$7)","v":696949.24}]
["Crashing Costs",null,null,null,0,0,0,14788.87,0,0,14788.87,0,0,0,0,14788.87,43617.67,0,0,0,0,0,0,0,0,0,0,0,0,0,0,0,0,5179.2700000000004,7581.67,0,14788.87,14788.87,0,0,7581.67,7581.67,0,0,14788.87,0,5179.2700000000004,0,0,0,0,0,0,0,0,7581.67,7581.67,14788.87,7581.67,5179.2700000000004,5179.2700000000004,14788.87,21996.07,14788.87,0,14788.87,14788.87,0,0,0,14788.87,0]
[]
["Maximum  Crashing",null,null,null,0,0,0,4,0,0,2,0,0,0,0,4,8,0,0,0,0,0,0,0,0,0,0,0,0,0,0,0,0,9,8,0,2,2,0,0,8,8,0,0,2,0,6,0,0,0,0,0,0,0,0,8,8,2,8,6,6,2,8,1,0,1,20,0,0,0,4,0]
[]
["Decision Variables (Periods Crashed)",null,null,null,0,0,0,4,0,0,0,0,0,0,0,0,0,0,0,0,0,0,0,0,0,0,0,0,0,0,0,0,0,0,0,0,0,0,0,0,0,0,0,0,0,0,0,0,0,0,0,0,0,0,0,0,0,0,8,0,6,2,6,1,0,1,20,0,0,0,4,0]
[]
[null,"Constraint","Constraint"]
["Path Number","LHS","RHS"]
[1,{"$f":"SUMPRODUCT(E$7:GT$7,E11:GT11)","v":52},52,null,1,1,null,1,null,null,null,null,null,1,null,null,null,null,null,1,null,null,null,null,1,null,null,null,null,null,null,null,1,null,null,null,null,null,null,null,null,null,null,null,null,null,null,1,null,null,null,1,null,null,1,null,null,null,1,null,1,1,1,1,1,1,1,1,null,null,1,1]
[2,{"$f":"SUMPRODUCT(E$7:GT$7,E12:GT12)","v":52},52,null,1,1,null,1,null,null,null,null,null,1,null,null,null,null,null,1,null,null,null,null,1,null,null,null,null,null,null,null,1,null,null,null,null,null,null,null,null,null,null,null,null,null,null,1,null,null,null,1,null,null,1,null,null,null,1,null,1,1,1,1,1,1,1,null,1,null,1,1]
[3,{"$f":"SUMPRODUCT(E$7:GT$7,E13:GT13)","v":48},44,null,1,1,null,1,null,null,null,null,null,1,null,null,null,null,null,1,null,null,null,null,1,null,null,null,null,null,null,null,1,null,null,null,null,null,null,null,null,null,null,null,null,null,null,1,null,null,null,1,null,null,1,null,null,null,1,null,1,1,1,1,1,1,1,1,null,1,null,1]
[4,{"$f":"SUMPRODUCT(E$7:GT$7,E14:GT14)","v":48},44,null,1,1,1,null,null,null,null,null,null,1,null,null,null,null,null,1,null,null,null,null,1,null,null,null,null,null,null,null,1,null,null,null,null,null,null,null,null,null,null,null,null,null,null,1,null,null,null,1,null,null,1,null,null,null,1,null,1,1,1,1,1,1,1,1,null,null,1,1]
[5,{"$f":"SUMPRODUCT(E$7:GT$7,E15:GT15)","v":48},44,null,1,1,1,null,null,null,null,null,null,1,null,null,null,null,null,1,null,null,null,null,1,null,null,null,null,null,null,null,1,null,null,null,null,null,null,null,null,null,null,null,null,null,null,1,null,null,null,1,null,null,1,null,null,null,1,null,1,1,1,1,1,1,1,null,1,null,1,1]
[6,{"$f":"SUMPRODUCT(E$7:GT$7,E16:GT16)","v":44},36,null,1,1,1,null,null,null,null,null,null,1,null,null,null,null,null,1,null,null,null,null,1,null,null,null,null,null,null,null,1,null,null,null,null,null,null,null,null,null,null,null,null,null,null,1,null,null,null,1,null,null,1,null,null,null,1,null,1,1,1,1,1,1,1,1,null,1,null,1]
[7,{"$f":"SUMPRODUCT(E$7:GT$7,E17:GT17)","v":38},36,null,1,1,null,1,null,null,null,1,null,null,null,null,null,1,null,null,1,null,null,null,null,null,null,null,null,null,null,null,null,null,null,null,null,null,null,null,null,null,null,null,null,null,null,null,1,1,1,null,null,1,null,null,1,null,null,1,null,1,1,1,1,1,1,1,null,null,1,1]
[8,{"$f":"SUMPRODUCT(E$7:GT$7,E18:GT18)","v":38},36,null,1,1,null,1,null,null,null,1,null,null,null,null,null,1,null,null,1,null,null,null,null,null,null,null,null,null,null,null,null,null,null,null,null,null,null,null,null,null,null,null,null,null,null,null,1,1,1,null,null,1,null,null,1,null,null,1,null,1,1,1,1,1,1,null,1,null,1,1]
[9,{"$f":"SUMPRODUCT(E$7:GT$7,E19:GT19)","v":34},28,null,1,1,null,1,null,null,null,1,null,null,null,null,null,1,null,null,1,null,null,null,null,null,null,null,null,null,null,null,null,null,null,null,null,null,null,null,null,null,null,null,null,null,null,null,1,1,1,null,null,1,null,null,1,null,null,1,null,1,1,1,1,1,1,1,null,1,null,1]
[10,{"$f":"SUMPRODUCT(E$7:GT$7,E20:GT20)","v":34},28,null,1,1,1,null,null,null,null,1,null,null,null,null,null,1,null,null,1,null,null,null,null,null,null,null,null,null,null,null,null,null,null,null,null,null,null,null,null,null,null,null,null,null,null,null,1,1,1,null,null,1,null,null,1,null,null,1,null,1,1,1,1,1,1,null,1,null,1,1]
[11,{"$f":"SUMPRODUCT(E$7:GT$7,E21:GT21)","v":34},28,null,1,1,1,null,null,null,null,1,null,null,null,null,null,1,null,null,1,null,null,null,null,null,null,null,null,null,null,null,null,null,null,null,null,null,null,null,null,null,null,null,null,null,null,null,1,1,1,null,null,1,null,null,1,null,null,1,null,1,1,1,1,1,1,1,null,null,1,1]
[12,{"$f":"SUMPRODUCT(E$7:GT$7,E22:GT22)","v":30},20,null,1,1,1,null,null,null,null,1,null,null,null,null,null,1,null,null,1,null,null,null,null,null,null,null,null,null,null,null,null,null,null,null,null,null,null,null,null,null,null,null,null,null,null,null,1,1,1,null,null,1,null,null,1,null,null,1,null,1,1,1,1,1,1,1,null,1,null,1]
[13,{"$f":"SUMPRODUCT(E$7:GT$7,E23:GT23)","v":38},12,null,1,1,null,1,null,null,null,null,1,null,null,null,null,null,1,null,null,null,null,null,null,null,null,1,null,null,null,1,null,null,null,null,null,null,null,1,null,null,1,null,null,1,null,null,null,null,null,null,1,null,null,1,null,1,null,null,null,1,1,1,1,1,1,null,1,null,1,1]
[14,{"$f":"SUMPRODUCT(E$7:GT$7,E24:GT24)","v":38},12,null,1,1,null,1,null,null,null,null,1,null,null,null,null,null,1,null,null,null,null,null,null,null,null,1,null,null,null,1,null,null,null,null,null,null,null,1,null,null,1,null,null,1,null,null,null,null,null,null,1,null,null,1,null,1,null,null,null,1,1,1,1,1,1,1,null,null,1,1]
[15,{"$f":"SUMPRODUCT(E$7:GT$7,E25:GT25)","v":34},4,null,1,1,null,1,null,null,null,null,1,null,null,null,null,null,1,null,null,null,null,null,null,null,null,1,null,null,null,1,null,null,null,null,null,null,null,1,null,null,1,null,null,1,null,null,null,null,null,null,1,null,null,1,null,1,null,null,null,1,1,1,1,1,1,1,null,1,null,1]
[16,{"$f":"SUMPRODUCT(E$7:GT$7,E26:GT26)","v":34},4,null,1,1,1,null,null,null,null,null,1,null,null,null,null,null,1,null,null,null,null,null,null,null,null,1,null,null,null,1,null,null,null,null,null,null,null,1,null,null,1,null,null,1,null,null,null,null,null,null,1,null,null,1,null,1,null,null,null,1,1,1,1,1,1,1,null,null,1,1]
[17,{"$f":"SUMPRODUCT(E$7:GT$7,E27:GT27)","v":34},4,null,1,1,1,null,null,null,null,null,1,null,null,null,null,null,1,null,null,null,null,null,null,null,null,1,null,null,null,1,null,null,null,null,null,null,null,1,null,null,1,null,null,1,null,null,null,null,null,null,1,null,null,1,null,1,null,null,null,1,1,1,1,1,1,null,1,null,1,1]

{"sheet":"tc10","index":5,"n_rows":15,"n_cols":8,"rows_kept":15,"cut":false,"hidden":false,"merged":[]}
[null,"Number of Activities =",null,null,10]
[null,"Target Completion Time =",null,null,20]
[null,null,null,null,null,"Number of"]
[null,null,"Normal","Max","Crash","Immediate","Immediate"]
[null,"Act #","Time","Crash","Cost","Predecessors","Predecessors"]
["Dummy Start Node",1,0,0,0,0]
["Activty 1",2,10,4,700,1,1]
["Activty 2",3,7,2,400,1,1]
["Activty 3",4,8,4,300,1,1]
["Activty 4",5,9,3,600,2,2,3]
["Activty 5",6,7,1,900,2,3,4]
["Activty 6",7,5,2,300,1,4]
["Activty 7",8,5,2,800,2,5,6]
["Activty 8",9,9,4,500,2,6,7]
["Dummy End Node",10,0,0,0,2,8,9]

{"sheet":"tc19","index":6,"n_rows":24,"n_cols":9,"rows_kept":24,"cut":false,"hidden":false,"merged":[]}
[null,"Number of Activities =",null,null,19]
[null,"Target Completion Time =",null,null,295]
[null,null,null,null,null,"Number of"]
[null,null,"Normal","Max","Crash","Immediate","Immediate"]
[null,"Act #","Time","Crash","Cost","Predecessors","Predecessors"]
["Pre-fieldwork procedures",1,20,2,300,0]
["Observe inventory",2,25,3,200,1,1]
["General audit procedures",3,11,1,150,1,2]
["Audit cash",4,19,2,350,1,2]
["Inventory pricing",5,145,8,800,1,2]
["Audit receivables",6,10,2,350,1,4]
["Audit cost of goods sold",7,25,3,450,1,5]
["Audit sales",8,6,2,550,1,6]
["Audit other current assets",9,11,3,600,1,3]
["Audit other rev. & expense",10,10,2,500,2,7,8]
["Audit capital stock & R/E",11,1,0,0,1,10]
["Audit fixed assets",12,22,3,300,1,9]
["Subsequent review",13,18,2,400,2,11,12]
["Audit liabilities",14,93,8,700,1,5]
["Lawyer's letter",15,1,0,0,1,14]
["Management's letter",16,1,0,0,2,11,12]
["Prepare financial statements",17,15,4,250,3,13,15,16]
["Prepare tax returns",18,12,2,500,3,13,15,16]
["Partner/manager review",19,6,2,650,2,17,18]

{"sheet":"tc20","index":7,"n_rows":27,"n_cols":9,"rows_kept":27,"cut":false,"hidden":false,"merged":[]}
[null,"Number of Activities =",null,null,22]
[null,"Target Completion Time =",null,null,18]
[null,null,null,null,null,"Number of"]
[null,null,"Normal","Max","Crash","Immediate","Immediate"]
[null,"Act #","Time","Crash","Cost","Predecessors","Predecessors"]
["Dummy",1,0,0,0,0]
["Computer delivery",2,8,3,400,1,1]
["Modify existing applications",3,3,1,175,1,1]
["Design new applications",4,8,3,375,1,1]
["Evaluate manpower",5,2,1,225,1,1]
["Install computer",6,2,1,200,1,2]
["Program modifications",7,4,2,400,1,3]
["Design interface",8,3,2,350,1,3]
["Hire additional people",9,2,1,100,1,5]
["Program new applications",10,6,3,275,3,4,8,9]
["Test computer",11,2,1,125,1,6]
["Test existing applications",12,2,1,350,2,7,11]
["Test new applications",13,2,1,175,1,10]
["Revise existing applications",14,2,1,425,2,12,13]
["Revise new applications",15,3,1,650,2,12,13]
["Parallel run existing apps",16,2,1,550,1,14]
["Revise documentation for existing apps",17,2,1,500,1,14]
["Second test of new applications",18,2,1,525,1,15]
["Document new applications",19,3,1,575,1,18]
["Implement existing applications",20,1,0,0,1,16]
["Implement new applications",21,2,1,325,2,17,19]
["Dummy",22,0,0,0,2,20,21]

{"sheet":"tc68","index":8,"n_rows":73,"n_cols":12,"rows_kept":73,"cut":false,"hidden":false,"merged":[]}
[null,"Number of Activities =",null,null,68]
[null,"Target Completion Time =",null,null,592]
[null,null,null,null,null,"Number of"]
[null,null,"Normal","Max","Crash","Immediate","Immediate"]
[null,"Act #","Time","Crash","Cost","Predecessors","Predecessors"]
["X1 = Induct Aircraft to Structural/Electrical Phase",1,8,0,0,0]
["X2 = Raise Fuselage on Work Stands",2,8,0,0,2,3,4]
["X3 = Review Work Package, Inventory OCM Parts",3,8,0,0,1,1]
["X4 = Inventory Upgrade Kits",4,16,4,14788.87,1,1]
["X5 = Structural Repair – Roof Section",5,56,0,0,2,3,4]
["X6 = Structural Repair – Nose Section",6,104,0,0,2,3,4]
["X7 = Remove Landing Gear",7,8,2,14788.87,1,2]
["X8 = Remove Electrical Interference – Transition Section",8,16,0,0,1,2]
["X9 = Remove Electrical Interference – Tailcone Section",9,16,0,0,1,2]
["X10 = Remove Electrical Interference - Cabin",10,24,0,0,1,2]
["X11 = Structural Repair – Cockpit Section",11,80,0,0,1,2]
["X12 = Inspect/Repair Landing Gear Fittings",12,16,4,14788.87,1,7]
["X13 = Inspect/Repair/Reassemble Landing Gear",13,64,8,43617.67,1,7]
["X14 = Structural Repair – Transition Section",14,24,0,0,1,8]
["X15 = Structural Repair – Tail Cone Section",15,72,0,0,1,9]
["X16 = Structural Repair – Cabin Under Floor",16,48,0,0,1,10]
["X17 = SSI 50-6 Rework of Lower Aft Transition Section",17,240,0,0,1,14]
["X18 = Remove Electrical Interference – Roof Section",18,8,0,0,1,5]
["X19 = SSI 50-15 Installation of ESSS Doublers",19,24,0,0,1,18]
["X20 = Install Landing Gear",20,8,0,0,2,12,13]
["X21 = Structural Repair – Cabin Overhead",21,48,0,0,1,16]
["X22 = SSI 50-22 Modification of Cockpit Floor and Door Posts",22,32,0,0,1,11]
["X23 = SSI 50-16 Rework of Upper Plating and Doubler Installation",23,64,0,0,1,19]
["X24 = SSI 50-9 Modification of Drive Shaft Supports",24,32,0,0,1,15]
["X25 = SSI 50-35 Modification of Canopy Assembly, Nose Door Hinge Access",25,8,0,0,1,6]
["X26 = Electrical Repair – Nose Section",26,24,0,0,1,25]
["X27 = Electrical Repair – Cockpit Section",27,24,0,0,1,22]
["X28 = SSI 50-13 Installation of Tail Cone Plating Modification Kit",28,56,0,0,1,24]
["X29 = SSI 50-5 Installation of Side Fuselage Structural Reinforcement",29,152,0,0,1,21]
["X30 = Final/Recheck Structural – Nose Section",30,24,9,5179.2700000000004,1,26]
["X31 = Final/Recheck Structural – Cockpit Section",31,24,8,7581.67,1,27]
["X32 = SSI 50-30 Installation of HIRSS Repair Kit",32,16,0,0,1,23]
["X33 = Final/Recheck Electrical – Nose Section",33,8,2,14788.87,1,30]
["X34 = Final/Recheck Electrical – Cockpit Section",34,8,2,14788.87,1,31]
["X35 = Electrical Repairs – Roof Section",35,24,0,0,1,32]
["X36 = SSI 50-17 Modification of Station 605.00 Bulkhead",36,32,0,0,1,28]
["X37 = Final/Recheck Structural – Roof Section",37,24,8,7581.67,1,35]
["X38 = Structural Repair - Firewalls",38,24,8,7581.67,1,37]
["X39 = SSI 50-24 Modification of Tail Cone",39,56,0,0,1,36]
["X40 = SSI 50-19 Modification of Left and Right Side Firewall Assemblies",40,32,0,0,1,38]
["X41 = Final/Recheck Structural – Firewalls Section",41,8,2,14788.87,1,40]
["X42 = SSI 50-29 Modification of Tail Cone Shear Deck",42,56,0,0,1,39]
["X43 = Final/Recheck Electrical – Roof Section",43,16,6,5179.2700000000004,1,41]
["X44 = SSI 50-7 Modification of Buttline 34.50",44,40,0,0,1,29]
["X45 = SSI 50-20 Modification of Tail Rotor Drive Shaft Support Brackets",45,16,0,0,1,17]
["X46 = SSI 50-34 Modification of Transition Station 485.00",46,8,0,0,1,45]
["X47 = SSI 50-21 Replacement of Vapor Barrier Support Structure",47,24,0,0,1,46]
["X48 = SSI 50-26 Modification of Station 379.00 Frame",48,24,0,0,1,44]
["X49 = Electrical Repair –Tail Cone Section",49,24,0,0,1,42]
["X50 = Electrical Repair – Transition Section",50,32,0,0,1,47]
["X51 = Electrical Repair – Cabin Section",51,40,0,0,1,48]
["X52 = Final/Recheck Structural – Tail Cone Section",52,24,8,7581.67,1,49]
["X53 = Final/Recheck Structural – Transition Section",53,24,8,7581.67,1,50]
["X54 = Final/Recheck Electrical – Tail Cone Section",54,8,2,14788.87,1,52]
["X55 = Final/Recheck Structural - Cabin",55,24,8,7581.67,1,51]
["X56 = Final/Recheck Electrical – Transition Section",56,16,6,5179.2700000000004,1,53]
["X57 = Final/Recheck Electrical – Cabin Section",57,16,6,5179.2700000000004,1,55]
["X58 = Remove Fuselage from Work Stands",58,8,2,14788.87,6,20,34,43,54,56,57]
["X59 = Wire Alignment",59,40,8,21996.07,1,58]
["X60 = All Structural Repairs Complete",60,4,1,14788.87,2,33,59]
["X61 = Seam Seal Fuselage",61,32,0,0,1,60]
["X62 = Move Fuselage to Final ATC",62,4,1,14788.87,1,61]
["X63 = Final ATC",63,80,20,14788.87,1,62]
["X64 = Final Electrical Inspection",64,8,0,0,1,63]
["X65 = Final Structural Inspection",65,8,0,0,1,63]
["X66 = Install EMI Filters",66,8,0,0,1,64]
["X67 = Clean and Close",67,16,4,14788.87,2,64,65]
["X68 = Move Fuselage to Retreat/Prime Paint",68,4,0,0,2,66,67]